Cogmind - Beta 14 @@@ ROGUE MODE // 2024.10.09 @ 20:06:51 Player: THN-L0C Result: Destroyed by D-83 Annihilator with Micro-nuke Launcher Performance ------------- Evolutions (9) 4500 Regions Visited (29) 5800 Robots Destroyed (237) 1185 Value Destroyed (12725) 12725 Prototype IDs (67) 1340 Alien Tech Used (0) 0 Bonus (20957) 20957 TOTAL SCORE: 46507 Bonus ------- High Alert Combat Kills 791 Follower Combat Kills 1703 Aligned with FarCom 300 Met Data Miner 300 Destroyed Z-Imprinter 1000 Triggered Deep Caves Wall 500 Exposed GOLEM Chamber 500 Met Zhirov 300 Met Warlord at Base 500 MAIN.C Attacked Warlord 500 Warlord Defense Kills 386 Built Enhanced Grunts 300 A7 Reached Mainframe 300 Met R17 at Cetus 500 Met R17 at Research 2000 Destroyed MAIN.C Guards 500 Met MAIN.C 5000 Hacked MAIN.C 300 Destroyed MAIN.C Shell 5000 Met Warlord at Command 2000 Friendly Fire -1723 Cogmind --------- Core Integrity 0/1600 Matter 291/300 Energy 85/100 System Corruption 32% Temperature Cool (0) Movement Core (50) Location -1/Command Parts ------- > --- POWER (2) -------- (None) > --- PROPULSION (4) --- (None) > --- UTILITY (16) ----- (None) > --- WEAPON (3) ------- (None) > --- INVENTORY (5) ---- Huge Storage Unit YI-UF0's Bottomless Matter Pit (1207) Advanced Remote Shield AEGIS Remote Shield Peak State ------------ > --- POWER ------------ Assembled Flux Generator > --- PROPULSION ------- Enhanced Biometal Leg Enhanced Biometal Leg Assembled Alloy Leg Assembled Alloy Leg > --- UTILITY ---------- Assembled Nanovents Assembled Nanovents Assembled Nanovents Huge Storage Unit Assembled Biocell Array Assembled Biocell Array Assembled Suspension Frame Assembled Metafiber Network Assembled Combat Suite Centrium Medium Armor Plating Assembled Alloy Armor Assembled Alloy Armor Assembled Alloy Armor Assembled Alloy Armor GOLEM Unit > --- WEAPON ----------- Assembled Focal Cannon Assembled Focal Cannon Assembled Focal Cannon > --- INVENTORY -------- Vortex Chain Reactor Biometal Leg Centrium Leg Experimental Power Amplifier YI-UF0's Bottomless Matter Pit Experimental Targeting Computer Advanced Particle Charger Experimental Cloaking Device Centrium Light Armor Plating Centrium Medium Armor Plating Centrium Medium Armor Plating Graphene Brace Advanced Focal Shield Thermal Barrier Advanced Remote Shield Improved Hacking Suite Improved System Shield Ghost Barrier Advanced Component Analysis Suite Hacking Drone Bay GOLEM Unit Longsword +1 Longsword +1 [Rating: 233] Favorites ----------- Power Assembled Flux Generator Engine Improved Deuterium Engine Reactor Assembled Flux Generator Propulsion Assembled Alloy Leg Treads Light Treads Leg Assembled Alloy Leg Wheel Armored Huge Wheel Utility Assembled Alloy Armor Device GOLEM Unit Storage Assembled Biocell Array Processor Improved Melee Analysis Suite Hackware Ghost Barrier Protection Assembled Alloy Armor Weapon Assembled Focal Cannon Energy Gun Medium Laser Energy Cannon Assembled Focal Cannon Ballistic Gun Gauss Rifle Ballistic Cannon Graviton Cannon Launcher Grenade Launcher Special Weapon RU-N14's Throwing Claymores Impact Weapon Heavy Mace Slashing Weapon Longsword +1 Build | -11 -10 -10 -10 -9 -8 -7 -7 -7 -7 -7 -6 -6 -6 -6 -6 -5 -5 -5 -5 -5 -4 -4 -4 -4 -3 -3 -2 -1 -1 ------- Run | Yrd Mat Min Exi Min Mat Fac Low Low Zio Dee Pro Fac Low Low Dat Pro Fac Ext Cet Arc Fac Upp Upp War Pro Res Res Acc Com Slots Evolved 18 | . . . . . 4 2 . . . . . 2 . . . . 2 . . . 2 . . . . 2 2 2 . Power 1 | . . . . . . 1 . . . . . . . . . . . . . . . . . . . . . . . Propulsion 2 | . . . . . . . . . . . . . . . . . . . . . . . . . . . 2 . . Utility 14 | . . . . . 4 1 . . . . . 2 . . . . 2 . . . 2 . . . . 2 . 1 . Weapon 1 | . . . . . . . . . . . . . . . . . . . . . . . . . . . . 1 . Parts Attached 328 | 8 2 3 1 7 23 9 3 1 6 29 5 3 1 1 . 3 10 9 3 7 18 12 13 5 8 12 18 30 78 Power 7 | 1 . . . 1 1 1 . . 1 1 . . . . . . . . . . . . . . . . . . 1 Engine 6 | 1 . . . 1 1 1 . . 1 1 . . . . . . . . . . . . . . . . . . . Core . | . . . . . . . . . . . . . . . . . . . . . . . . . . . . . . Reactor 1 | . . . . . . . . . . . . . . . . . . . . . . . . . . . . . 1 Propulsion 19 | 3 . . . . 3 . . . . 2 . . . . . . . . . . . . . . 1 . 2 5 3 Treads 2 | 2 . . . . . . . . . . . . . . . . . . . . . . . . . . . . . Leg 14 | 1 . . . . 2 . . . . . . . . . . . . . . . . . . . 1 . 2 5 3 Wheel 3 | . . . . . 1 . . . . 2 . . . . . . . . . . . . . . . . . . . Hover . | . . . . . . . . . . . . . . . . . . . . . . . . . . . . . . Flight . | . . . . . . . . . . . . . . . . . . . . . . . . . . . . . . Utility 253 | 2 1 2 1 2 8 7 2 1 1 15 4 3 1 1 . 3 10 9 3 6 18 12 13 5 7 12 16 25 63 Device 156 | 1 . 1 . . 1 2 1 . 1 5 2 1 1 1 . 1 9 7 2 4 12 11 8 4 2 8 11 21 39 Storage 13 | 1 1 1 1 . 1 . . . . 1 . 1 . . . 1 . . . 1 1 . 1 . 1 . 1 . . Processor 11 | . . . . . 2 1 . . . 1 . . . . . . . . . . 2 . . . 1 1 1 1 1 Hackware 5 | . . . . . . . . . . . . . . . . . . . . . 1 . . . . . . . 4 Protection 68 | . . . . 2 4 4 1 1 . 8 2 1 . . . 1 1 2 1 1 2 1 4 1 3 3 3 3 19 Artifact . | . . . . . . . . . . . . . . . . . . . . . . . . . . . . . . Weapon 49 | 2 1 1 . 4 11 1 1 . 4 11 1 . . . . . . . . 1 . . . . . . . . 11 Energy Gun 6 | 2 . 1 . . 1 . . . . 2 . . . . . . . . . . . . . . . . . . . Energy Cannon 1 | . . . . . 1 . . . . . . . . . . . . . . . . . . . . . . . . Ballistic Gun 6 | . . . . 2 2 . . . . . . . . . . . . . . . . . . . . . . . 2 Ballistic Cannon 2 | . . . . . . . . . . . . . . . . . . . . . . . . . . . . . 2 Launcher 9 | . 1 . . 2 3 . 1 . 1 . . . . . . . . . . . . . . . . . . . 1 Special Weapon 10 | . . . . . . . . . 2 6 . . . . . . . . . . . . . . . . . . 2 Impact Weapon 6 | . . . . . 3 . . . . 2 1 . . . . . . . . . . . . . . . . . . Slashing Weapon 9 | . . . . . 1 1 . . 1 1 . . . . . . . . . 1 . . . . . . . . 4 Piercing Weapon . | . . . . . . . . . . . . . . . . . . . . . . . . . . . . . . Special Melee Weapon . | . . . . . . . . . . . . . . . . . . . . . . . . . . . . . . Unidentified Prototypes 19 | . . 1 . . 1 . . . 1 3 . . . . . . 1 . . 1 2 . . 3 2 1 . . 3 Parts Lost 59 | . . . . 1 1 . 1 1 . 6 . 1 . . . . 1 . 1 6 1 . . . . . . 1 38 Power 5 | . . . . 1 . . . . . 2 . . . . . . . . . . . . . . . . . . 2 Propulsion 7 | . . . . . . . . . . . . . . . . . . . . . . . . . . . . 1 6 Utility 35 | . . . . . . . 1 1 . 3 . 1 . . . . 1 . 1 5 1 . . . . . . . 21 Weapon 12 | . . . . . 1 . . . . 1 . . . . . . . . . 1 . . . . . . . . 9 Highest Loss Streak 24 | . . . . 1 1 . 1 1 . 2 . 1 . . . . 1 . 1 6 1 . . . . . . 1 24 To Critical Strikes 2 | . . . . . . . . . . . . . . . . . . . 1 . . . . . . . . 1 . Average Slot Usage (%) 88 | . 100 100 100 99 92 89 89 92 88 84 76 84 85 86 86 85 87 88 88 84 88 88 88 87 89 89 90 89 86 Engine 3 | . 14 14 14 13 9 12 15 15 15 10 . . . . . . . . . . . . . . . . . . . Reactor 3 | . . . . . . . . . . . 6 6 6 6 6 6 5 5 5 5 5 5 5 5 5 4 4 4 3 Treads 1 | . 28 28 28 28 7 . . . . . . . . . . . . . . . . . . . . . . . . Leg 8 | . . . . . . . . . . . . 11 13 13 13 13 11 11 11 11 10 10 10 10 10 9 16 15 15 Wheel 1 | . . . . . 5 7 7 7 7 7 7 . . . . . . . . . . . . . . . . . . Device 22 | . 14 14 14 1 8 13 7 7 12 9 15 26 26 27 33 32 34 29 23 32 29 27 26 21 27 32 24 22 22 Storage 11 | . 14 14 14 14 9 7 7 7 7 4 14 12 13 13 13 13 11 11 11 11 15 14 15 15 14 14 12 12 11 Processor 4 | . . . . . 17 17 15 15 15 14 . . . . . . . . . . . 5 5 5 4 . . 3 4 Protection 14 | . . . . 12 17 14 20 23 15 22 13 12 13 11 6 6 11 17 22 10 15 13 14 20 14 18 22 19 13 Energy Gun 1 | . 28 27 28 14 . . . . . 1 . . . . . . . . . . . . . 2 . . . . . Energy Cannon 7 | . . . . . . . . . . 1 10 13 12 13 13 13 11 11 11 10 10 10 10 6 10 9 8 11 10 Impact Weapon 1 | . . . . . 8 9 7 7 6 3 2 . . . . . . . . . . . . . . . . . . Peak Build Rating 233 | 7 7 16 9 17 49 60 57 52 58 75 109 127 127 124 124 138 155 147 144 158 175 173 171 175 180 199 216 233 230 Average Rating 133 | 5 7 7 8 14 41 56 51 51 52 61 96 125 123 123 124 125 146 144 140 149 162 166 167 163 172 195 212 225 210 On Entrance 104 | . 7 7 8 9 14 47 60 52 47 57 75 99 127 123 124 124 128 143 144 141 148 160 167 155 175 180 194 209 221 Naked Turns 4 | . . . . . . . . . . . . . . . . . . . . . . . . . . . . . 4 Heaviest Build 222 | 12 29 29 27 37 123 136 135 139 126 124 163 166 166 166 163 169 179 182 189 189 184 186 189 197 189 195 205 221 222 Greatest Support 140 | 40 40 40 40 40 40 28 28 28 28 28 28 80 60 60 60 80 80 80 80 80 80 80 80 80 80 80 140 140 140 Greatest Overweight (x) 71 | 3 . . . . 4 4 4 4 4 4 5 5 2 2 2 2 2 2 3 3 3 2 3 2 3 3 1 2 71 Average Overweight (x) 2 | . . . . . 2 4 4 4 4 2 4 2 2 2 2 2 2 2 2 2 2 2 2 1 2 2 1 1 1 Largest Inventory Capacity 25 | 8 15 15 15 15 25 25 25 25 25 25 25 25 25 25 25 25 25 25 25 25 25 25 25 25 25 25 25 25 25 Average Capacity 23 | 7 14 15 15 15 20 25 25 25 25 18 25 24 25 25 25 24 25 25 25 24 24 25 25 25 24 25 24 25 24 Most Carried 25 | 3 7 9 11 15 25 25 25 25 25 25 25 25 25 25 25 25 25 25 25 25 25 25 25 25 25 25 25 25 25 Average Carried 22 | 1 6 8 9 14 20 24 25 25 24 16 24 24 24 24 25 23 24 24 24 23 23 24 24 22 23 24 23 24 20 Final Capacity 25 | 8 15 15 15 15 25 25 25 25 25 25 25 25 25 25 25 25 25 25 25 25 25 25 25 25 25 25 25 25 5 Final Carried 25 | 3 7 9 9 14 25 25 25 25 25 21 25 25 25 25 25 23 24 25 25 23 25 25 21 25 25 25 25 25 4 Class Distribution -------------------- 69% | Golem 20% | Mutant 4% | Gladiator Dominant Class ---------------- Mutant | -10/Materials Mutant | -10/Mines Mutant | -10/Exiles Mutant | -9/Mines Mutant | -8/Materials Gladiator | -7/Factory Mutant | -7/Lower Caves Mutant | -7/Lower Caves Mutant | -7/Zion Mutant | -7/Deep Caves Golem | -6/Proximity Caves Golem | -6/Factory Golem | -6/Lower Caves Golem | -6/Lower Caves Golem | -6/Data Miner Golem | -5/Proximity Caves Golem | -5/Factory Golem | -5/Extension Golem | -5/Cetus Golem | -5/Archives Golem | -4/Factory Golem | -4/Upper Caves Golem | -4/Upper Caves Golem | -4/Warlord Golem | -3/Proximity Caves Golem | -3/Research Golem | -2/Research Golem | -1/Access Golem | -1/Command Resources | -11 -10 -10 -10 -9 -8 -7 -7 -7 -7 -7 -6 -6 -6 -6 -6 -5 -5 -5 -5 -5 -4 -4 -4 -4 -3 -3 -2 -1 -1 ----------- Run | Yrd Mat Min Exi Min Mat Fac Low Low Zio Dee Pro Fac Low Low Dat Pro Fac Ext Cet Arc Fac Upp Upp War Pro Res Res Acc Com Matter Collected 6295 | 173 203 192 500 172 521 50 407 129 107 481 426 167 10 10 . 30 70 133 30 30 344 167 141 60 70 140 190 348 994 Remotely . | . . . . . . . . . . . . . . . . . . . . . . . . . . . . . . Salvage Created 12610 | 24 278 192 . 165 746 77 158 . . 751 247 665 . 72 . 378 405 816 151 39 971 672 332 147 308 . 669 1793 2554 Parts 642 | 9 29 6 . 21 33 7 10 . . 2 20 33 . 4 . 11 35 25 7 4 41 14 20 5 12 . 29 131 134 Haulers Intercepted 3 | . . . . . 2 . . . . . . . . . . . . . . . 1 . . . . . . . . Recyclers Shooed 5 | 1 2 2 . . . . . . . . . . . . . . . . . . . . . . . . . . . Parts Field Recycled . | . . . . . . . . . . . . . . . . . . . . . . . . . . . . . . Retrieved Matter . | . . . . . . . . . . . . . . . . . . . . . . . . . . . . . . Parts Self-Destructed 104 | . . . . . . . 7 6 5 . 20 . . 4 . 10 . . . . . . 16 . 36 . . . . Prevented . | . . . . . . . . . . . . . . . . . . . . . . . . . . . . . . Kills | -11 -10 -10 -10 -9 -8 -7 -7 -7 -7 -7 -6 -6 -6 -6 -6 -5 -5 -5 -5 -5 -4 -4 -4 -4 -3 -3 -2 -1 -1 ------- Run | Yrd Mat Min Exi Min Mat Fac Low Low Zio Dee Pro Fac Low Low Dat Pro Fac Ext Cet Arc Fac Upp Upp War Pro Res Res Acc Com Combat Hostiles Destroyed 247 | . 10 . . 11 16 1 11 . . 49 11 12 . 1 . 7 6 13 2 . 12 1 5 2 4 . 11 27 35 Melee 8 | . . . . . 3 1 1 . . 3 . . . . . . . . . . . . . . . . . . . Guns 17 | . 10 . . 3 3 . . . . 1 . . . . . . . . . . . . . . . . . . . Cannons 152 | . . . . . . . . . . 5 11 12 . 1 . 7 6 13 2 . 12 1 5 2 4 . 10 27 34 AOE 62 | . . . . 8 4 . 10 . . 38 . . . . . . . . . . . . . . . . 1 . 1 Classes Destroyed 22 | 1 3 1 . 1 4 1 . . . 4 . 1 . . . . . 1 . . . 1 . 1 1 . 2 . . Worker 6 | . . . . . 3 . . . . . . 1 . . . . . . . . 1 . . . . . . . 1 Builder 3 | . . . . . 1 . . . . . . . . . . . 1 . . . . . . . . . . 1 . Tunneler 5 | 2 . 1 . . . 1 . . . . . . . . . . . . . . . . . . . . . 1 . Hauler 3 | . . . . . 2 . . . . . . . . . . . . . . . 1 . . . . . . . . Recycler 1 | . . 1 . . . . . . . . . . . . . . . . . . . . . . . . . . . Carrier 1 | . . . . . . . . . . . . . . . . . . . . . . . . . . . 1 . . Operator 1 | . . . . . . . . . . . . . . . . . . 1 . . . . . . . . . . . Watcher 15 | . 2 . . . . . . . . . . . . . . . 2 . 1 . 2 . . . . . 2 2 4 Swarmer 56 | . 6 . . 7 3 . 3 . . . 11 3 . . . 4 . 2 . . 1 . . . . . 6 6 4 Grunt 45 | . 4 . . 3 7 . 7 . . . . 2 . . . . . 7 . . 4 . . 1 3 . . 1 6 Brawler 4 | . . . . . . . . . . . . . . . . . . . . . . . . . 1 . . . 3 Duelist 4 | . . . . 1 1 . 1 . . . . . . . . . . . . . . . . . . . . . 1 Sentry 16 | . . . . . 5 . . . . . . 1 . 1 . 1 1 4 . . 1 . . . . . 1 . 1 Hunter 16 | . . . . . . . . . . . . 2 . . . . 1 . . . 2 . 2 . . . . 7 2 Programmer 43 | . . . . . . 1 . . . . . 2 . . . . 4 . . . 4 . 2 . . . 1 13 16 Cetus Guard 2 | . . . . . . . . . . . . . . . . . . . 2 . . . . . . . . . . Combat Programmer 2 | . . . . . . . . . . . . . . . . . . . . . . . . . . . . . 2 Striker 1 | . . . . . . . . . . . . . . . . . . . . . . . . . . . 1 . . Executioner 3 | . . . . . . . . . . . . . . . . . . . . . . . . 1 . . 2 . . Z-Light 2 | . . . . . . . . . . 2 . . . . . . . . . . . . . . . . . . . Assembler 1 | . . . . . . . . . . 1 . . . . . . . . . . . . . . . . . . . Assembled 43 | . . . . . . . . . . 43 . . . . . . . . . . . . . . . . . . . Golem 7 | . . . . . . . . . . 3 . 2 . . . 2 . . . . . . . . . . . . . Thug 2 | . . . . . . . . . . 1 . . . . . . . . . . . . 1 . . . . . . Mutant 1 | . . . . . . . . . . . . . . . . . . . . . . 1 . . . . . . . Best Kill Streak 40 | 2 3 1 . 7 4 1 4 . . 40 4 5 . 1 . 4 3 2 3 . 7 1 3 1 4 . 5 4 4 Combat Bots Only 38 | . 3 . . 7 3 1 4 . . 38 4 5 . 1 . 4 2 2 2 . 7 1 3 1 4 . 5 4 4 Max Kills in Single Turn 21 | 1 1 2 . 3 3 1 2 . . 21 1 1 . 1 . 1 2 1 2 . 2 1 2 1 1 . 3 1 2 Gunslinging . | . . . . . . . . . . . . . . . . . . . . . . . . . . . . . . Exploded 20 | . . . . 2 2 . 2 . . 20 . . . . . . . . . . . . . . . . 1 . 1 Melee 1 | . . . . . 1 1 1 . . 1 . . . . . . . . . . . . . . . . . . . Uniques/NPCs Destroyed 2 | . . 1 . . . . . . . 1 . . . . . . . . . . . . . . . . . . . YI-UF0 (-10/Mines) Z-Imprinter (-7/Deep Caves) Combat | -11 -10 -10 -10 -9 -8 -7 -7 -7 -7 -7 -6 -6 -6 -6 -6 -5 -5 -5 -5 -5 -4 -4 -4 -4 -3 -3 -2 -1 -1 -------- Run | Yrd Mat Min Exi Min Mat Fac Low Low Zio Dee Pro Fac Low Low Dat Pro Fac Ext Cet Arc Fac Upp Upp War Pro Res Res Acc Com Hostile Shots Fired 1799 | . 44 4 . 18 83 50 46 6 . 61 88 50 . 9 . 15 52 62 24 14 130 2 38 4 50 2 67 314 566 Missed 604 | . 16 3 . 5 19 11 17 4 . 16 26 17 . 6 . 3 15 19 12 5 48 1 19 2 19 . 21 106 194 Intercepted 6 | . . . . . . . . . . . . . . . . . . . . . . . . . . . . . 6 Damage Taken 22196 | . 293 14 . 110 870 581 428 35 . 1179 764 405 . 19 . 174 453 598 176 932 1114 12 129 177 401 23 919 2371 10019 Core 2730 | . 95 . . 7 87 32 118 . . 203 147 28 . 10 . 43 33 . 17 59 63 . 16 21 53 . 89 118 1491 Absorbed by Shields 3878 | . . . . . . . . . . . . . . . . . 161 319 121 70 395 13 139 41 109 7 468 725 1310 Redirected to Shielding 290 | . . . . 11 . 44 57 . . 73 . . . . . . . . . . . . . . . . 39 . 66 Ignored by Resistances 4864 | . . . . . 85 39 43 . . . 167 86 . 4 . 38 131 184 61 179 334 5 94 46 112 7 283 1141 1825 Regen/Repaired (Parts) 620 | . . . . . 183 . . . . . . . . . . . . . . . 34 . . . . . . . 403 Core Remaining (%) 81 | 100 . . . 59 84 . . . . . 28 . . . . 90 . . . 89 . . . . 86 100 93 . . Volleys Fired 866 | 4 28 17 . 8 22 . 18 . . 40 29 53 . 1 . 18 25 36 9 . 52 24 10 5 22 1 29 148 267 Largest 3 | 2 2 2 . 2 2 . 1 . . 1 2 2 . 2 . 2 2 2 2 . 2 2 2 2 2 1 2 3 3 Hottest 90 | 90 90 90 . 80 80 . 30 . . 60 50 50 . 50 . 50 50 50 50 . 50 50 50 50 50 25 50 75 75 Shots Fired 1179 | 8 54 34 . 15 29 . 18 . . 40 34 95 . 2 . 29 43 68 13 . 83 31 20 10 34 1 48 186 284 Gun 132 | 8 54 34 . 9 13 . . . . 14 . . . . . . . . . . . . . . . . . . . Cannon 980 | . . . . . . . . . . 2 34 95 . 2 . 29 43 68 13 . 83 31 20 10 34 1 48 186 281 Launcher 49 | . . . . 6 16 . 18 . . 8 . . . . . . . . . . . . . . . . . . 1 Special 18 | . . . . . . . . . . 16 . . . . . . . . . . . . . . . . . . 2 Kinetic 6 | . . . . 2 3 . . . . . . . . . . . . . . . . . . . . . . . 1 Thermal 1106 | 8 54 34 . 7 10 . . . . 16 34 95 . 2 . 29 43 68 13 . 83 31 20 10 34 1 48 186 280 Explosive 65 | . . . . 6 16 . 18 . . 24 . . . . . . . . . . . . . . . . . . 1 Electromagnetic . | . . . . . . . . . . . . . . . . . . . . . . . . . . . . . . Robot Hit Streak 51 | 7 5 19 . 5 5 . 10 . . 6 7 17 . 1 . 15 23 35 6 . 19 23 4 3 5 . 10 15 51 Robot Miss Streak 4 | . 3 2 . 2 2 . 2 . . 3 2 2 . 1 . 3 2 2 1 . 1 1 1 1 2 . 4 4 2 Penetration Max . | . . . . . . . . . . . . . . . . . . . . . . . . . . . . . . Secondary Targets 1 | . 1 . . . . . . . . . . . . . . . . . . . . . . . . . . . . Max Gunslinging Chain 1 | . 1 . . . . . . . . . . . . . . . . . . . . . . . . . . . . Capacitor 311 | . . . . . . . . . . . . . . . . . . . . . . . . . . . . 92 219 Shots Hit Robots 764 | 7 28 27 . 8 41 3 13 . . 31 17 43 . 1 . 15 24 52 8 1 40 16 12 5 14 . 18 97 243 Core Hits 459 | 2 19 10 . 15 20 1 25 . . 66 10 26 . 1 . 15 10 19 5 1 21 10 6 3 7 . 17 45 105 Critical Kills . | . . . . . . . . . . . . . . . . . . . . . . . . . . . . . . Critical Parts Destroyed 11 | . . . . . 9 . . . . 2 . . . . . . . . . . . . . . . . . . . Critical Strikes 19 | 2 1 1 . . 10 1 . . . 3 . . . . . . . . . . . . . . . . . . 1 Burn 4 | 2 1 1 . . . . . . . . . . . . . . . . . . . . . . . . . . . Blast 1 | . . . . . . . . . . . . . . . . . . . . . . . . . . . . . 1 Smash 11 | . . . . . 9 . . . . 2 . . . . . . . . . . . . . . . . . . . Sever 3 | . . . . . 1 1 . . . 1 . . . . . . . . . . . . . . . . . . . Melee Attacks 111 | . . . . . 33 11 1 1 . 36 . . . . . . . . . 1 . . . . . . . . 28 Impact 45 | . . . . . 27 5 1 1 . 11 . . . . . . . . . . . . . . . . . . . Slashing 66 | . . . . . 6 6 . . . 25 . . . . . . . . . 1 . . . . . . . . 28 Piercing . | . . . . . . . . . . . . . . . . . . . . . . . . . . . . . . Sneak Attacks 8 | . . . . . 4 1 . . . 3 . . . . . . . . . . . . . . . . . . . Combat Hostiles . | . . . . . . . . . . . . . . . . . . . . . . . . . . . . . . Follow-up Attacks 7 | . . . . . 1 . . . . 1 . . . . . . . . . . . . . . . . . . 5 Damage Inflicted 39874 | 82 371 326 . 425 1781 210 1428 . . 6539 828 2006 . 59 . 798 1412 2182 584 117 2022 830 690 267 766 . 1126 5129 9896 Guns 1142 | 82 371 326 . 67 125 . . . . 171 . . . . . . . . . . . . . . . . . . . Cannons 26749 | . . . . . . . . . . . 828 2006 . 59 . 798 1246 2182 584 . 2022 830 690 267 766 . 852 5129 8490 Explosions 8115 | . . . . 358 474 . 1373 . . 4987 . . . . . . 166 . . . . . . . . . 274 . 483 Melee 3395 | . . . . . 1180 210 55 . . 910 . . . . . . . . . 117 . . . . . . . . 923 Ramming 2 | . . . . . 2 . . . . . . . . . . . . . . . . . . . . . . . . Kinetic 120 | . . . . 17 61 . . . . . . . . . . . . . . . . . . . . . . . 42 Thermal 27937 | 82 371 326 . 50 64 . . . . 171 828 2006 . 59 . 798 1412 2182 584 . 2022 830 690 267 766 . 852 5129 8448 Explosive 7949 | . . . . 358 474 . 1373 . . 4987 . . . . . . . . . . . . . . . . 274 . 483 Electromagnetic . | . . . . . . . . . . . . . . . . . . . . . . . . . . . . . . Impact 1518 | . . . . . 1050 . 55 . . 413 . . . . . . . . . . . . . . . . . . . Slashing 2348 | . . . . . 130 210 . . . 968 . . . . . . . . . 117 . . . . . . . . 923 Piercing . | . . . . . . . . . . . . . . . . . . . . . . . . . . . . . . Highest Corruption 32 | . . . . . . 5 . . . . . 1 1 . . . 1 1 1 1 2 2 2 . . . 2 8 32 Average Corruption 6 | . . . . . . 3 . . . . . 1 1 . . . 1 1 1 1 1 2 1 . . . 1 4 20 Corruption Purged 8 | . . . . . . 5 . . . . . . 1 . . . . . . . . . 2 . . . . . . Corruption Blocked . | . . . . . . . . . . . . . . . . . . . . . . . . . . . . . . Effects 287 | . . . . . . 3 . . . . . 4 . . . . 1 12 4 5 18 17 7 . . . 3 43 170 Message Errors 59 | . . . . . . . . . . . . 1 . . . . . 3 2 1 3 4 . . . . 1 7 37 Matter Fused 72 | . . . . . . . . . . . . 3 . . . . 1 1 . 1 7 2 3 . . . . 11 43 Heat Flow Errors 35 | . . . . . . 2 . . . . . . . . . . . . . 1 2 5 . . . . . 7 18 Energy Discharges 33 | . . . . . . . . . . . . . . . . . . 3 . 1 . 2 2 . . . . 5 20 Parts Rejected 6 | . . . . . . . . . . . . . . . . . . . . . . . . . . . . . 6 Parts Fused 1 | . . . . . . . . . . . . . . . . . . . . 1 . . . . . . . . . Data Loss (minor) 42 | . . . . . . . . . . . . . . . . . . 4 2 . 3 3 . . . . 1 12 17 Data Loss (major) 7 | . . . . . . . . . . . . . . . . . . . . . 2 . . . . . . . 5 Misfires 11 | . . . . . . . . . . . . . . . . . . . . . . 1 1 . . . 1 . 8 Alerts 7 | . . . . . . 1 . . . . . . . . . . . 1 . . 1 . . . . . . 1 3 Misdirections 2 | . . . . . . . . . . . . . . . . . . . . . . . . . . . . . 2 Weapon Failures 12 | . . . . . . . . . . . . . . . . . . . . . . . 1 . . . . . 11 Overload Shots . | . . . . . . . . . . . . . . . . . . . . . . . . . . . . . . Overflow Damage 2452 | . . . . . 500 69 . . . 556 42 97 . . . 15 127 58 54 . 42 169 12 . 40 . 19 328 324 Projectiles 1206 | . . . . . . . . . . 8 42 97 . . . 15 78 58 54 . 42 169 12 . 40 . 19 328 244 Explosions 321 | . . . . . 23 . . . . 199 . . . . . . 49 . . . . . . . . . . . 50 Melee 925 | . . . . . 477 69 . . . 349 . . . . . . . . . . . . . . . . . . 30 Knockbacks 2 | . . . . . 1 . . . . 1 . . . . . . . . . . . . . . . . . . . Impact 2 | . . . . . 1 . . . . 1 . . . . . . . . . . . . . . . . . . . Kinetic . | . . . . . . . . . . . . . . . . . . . . . . . . . . . . . . Secondary . | . . . . . . . . . . . . . . . . . . . . . . . . . . . . . . Self-Inflicted Damage 257 | . . . . 7 12 . . . . 14 . . . . . . 55 . . . 93 . . . . . . . 76 Shots 7 | . . . . 1 1 . . . . 1 . . . . . . 1 . . . 2 . . . . . . . 1 Rammed . | . . . . . . . . . . . . . . . . . . . . . . . . . . . . . . Targets Rammed 1 | . . . . . 1 . . . . . . . . . . . . . . . . . . . . . . . . Kicked . | . . . . . . . . . . . . . . . . . . . . . . . . . . . . . . Crushed 1 | . . . . . 1 . . . . . . . . . . . . . . . . . . . . . . . . Highest Temperature 308 | 120 225 90 . 78 308 242 150 4 . 181 . . . . . . . . . 232 59 220 . . 3 . . 247 240 Average Temperature 81 | 61 89 38 . 30 126 74 65 4 . 89 . . . . . . . . . 143 43 92 . . 1 . . 89 84 Received Heat Transfer 2435 | . 135 9 . 24 432 243 171 18 . 214 48 87 . 6 . 36 6 182 17 36 215 4 4 . 126 9 . . 413 Effects 2 | . 2 . . . . . . . . . . . . . . . . . . . . . . . . . . . . Interference 2 | . 2 . . . . . . . . . . . . . . . . . . . . . . . . . . . . Siege Activations . | . . . . . . . . . . . . . . . . . . . . . . . . . . . . . . Robots Corrupted 10 | . . . . . 8 . . . . 2 . . . . . . . . . . . . . . . . . . . Combat Hostiles 8 | . . . . . 6 . . . . 2 . . . . . . . . . . . . . . . . . . . Parts Fried 11 | . . . . . 10 . . . . 1 . . . . . . . . . . . . . . . . . . . Impact Corruptions 25 | . . . . . 19 . . . . 6 . . . . . . . . . . . . . . . . . . . Robots Melted . | . . . . . . . . . . . . . . . . . . . . . . . . . . . . . . Combat Hostiles . | . . . . . . . . . . . . . . . . . . . . . . . . . . . . . . Parts Melted 18 | . 2 . . . . . . . . . 1 . . . . . 2 3 . . . 1 1 1 . . . 5 2 Heat Transferred 16134 | 371 1054 930 . 148 185 . . . . 222 450 1100 . 25 . 425 750 1225 300 . 1000 425 325 125 400 . 475 2500 3699 Parts Sabotaged . | . . . . . . . . . . . . . . . . . . . . . . . . . . . . . . Parts Stolen . | . . . . . . . . . . . . . . . . . . . . . . . . . . . . . . Parts Stripped . | . . . . . . . . . . . . . . . . . . . . . . . . . . . . . . Power Chain Reactions . | . . . . . . . . . . . . . . . . . . . . . . . . . . . . . . Alert | -11 -10 -10 -10 -9 -8 -7 -7 -7 -7 -7 -6 -6 -6 -6 -6 -5 -5 -5 -5 -5 -4 -4 -4 -4 -3 -3 -2 -1 -1 ------- Run | Yrd Mat Min Exi Min Mat Fac Low Low Zio Dee Pro Fac Low Low Dat Pro Fac Ext Cet Arc Fac Upp Upp War Pro Res Res Acc Com Peak Influence 649 | 10 168 51 . 293 322 106 . . . . . 154 . . . . 302 558 528 630 558 . . . . 2 235 550 649 Initial 321 | . 6 26 . . 113 103 . . . . . . . . . . . 147 312 131 51 . . . . . . 140 321 Average 234 | 3 80 36 . 75 208 75 . . . . . 39 . . . . 66 207 374 318 278 . . . . . 62 294 549 Maximum Alert Level 2 | . . . . 1 1 . . . . . . . . . . . 1 2 2 2 2 . . . . . 1 2 2 Low Security (%) 50 | 100 100 100 . 89 44 100 . . . . . 100 . . . . 86 51 . 28 24 . . . . 100 99 25 . Level 1 26 | . . . . 10 55 . . . . . . . . . . . 13 39 88 39 52 . . . . . . 52 3 Level 2 23 | . . . . . . . . . . . . . . . . . . 9 12 31 23 . . . . . . 21 96 Level 3 . | . . . . . . . . . . . . . . . . . . . . . . . . . . . . . . Level 4 . | . . . . . . . . . . . . . . . . . . . . . . . . . . . . . . Level 5 . | . . . . . . . . . . . . . . . . . . . . . . . . . . . . . . High Security . | . . . . . . . . . . . . . . . . . . . . . . . . . . . . . . Max Security . | . . . . . . . . . . . . . . . . . . . . . . . . . . . . . . Squads Dispatched 58 | . . . . 1 2 2 . . . . . 7 . . . . 3 4 . . 4 . . . . 7 2 10 16 Investigation 8 | . . . . 1 . 1 . . . . . 1 . . . . . 2 . . . . . . . 1 1 . 1 Extermination 22 | . . . . . . 1 . . . . . 3 . . . . 2 . . . 2 . . . . . . 6 8 Reinforcement 20 | . . . . . 2 . . . . . . 3 . . . . 1 2 . . 1 . . . . 6 1 1 3 Assault 6 | . . . . . . . . . . . . . . . . . . . . . . . . . . . . 2 4 Garrison 2 | . . . . . . . . . . . . . . . . . . . . . 1 . . . . . . 1 . Intercept . | . . . . . . . . . . . . . . . . . . . . . . . . . . . . . . Searches Triggered . | . . . . . . . . . . . . . . . . . . . . . . . . . . . . . . Data Miner Redirects 4 | . . . . . . . . . . . . . . . . . . 1 . . . . . . . . . 2 1 Construction Impeded 3 | . . . . . . . . . . . . 1 . . . . . 1 . . . . . . . . . 1 . Haulers Reinforced 2 | . . . . . . . . . . . . . . . . . . . . . . . . . . 2 . . . Active Scanning Responses . | . . . . . . . . . . . . . . . . . . . . . . . . . . . . . . Cargo Convoy Interrupts 1 | . . . . . . . . . . . . . . . . . 1 . . . . . . . . . . . . Stealth | -11 -10 -10 -10 -9 -8 -7 -7 -7 -7 -7 -6 -6 -6 -6 -6 -5 -5 -5 -5 -5 -4 -4 -4 -4 -3 -3 -2 -1 -1 --------- Run | Yrd Mat Min Exi Min Mat Fac Low Low Zio Dee Pro Fac Low Low Dat Pro Fac Ext Cet Arc Fac Upp Upp War Pro Res Res Acc Com Distress Signals 25 | . 1 . . . 2 . . . . . . . . . . . 1 1 2 1 . . . 1 . 2 9 2 3 Communications Jammed . | . . . . . . . . . . . . . . . . . . . . . . . . . . . . . . Distress Signals . | . . . . . . . . . . . . . . . . . . . . . . . . . . . . . . Times Spotted 476 | . 19 2 . 10 25 12 11 9 . 53 15 16 . 1 . 6 8 36 9 24 21 1 5 41 10 4 19 45 74 Peak Tracking Total 37 | . 4 2 . 7 4 8 4 9 . 37 4 3 . 1 . 3 3 4 5 16 8 1 3 8 4 3 8 8 9 Tactical Retreats 17 | . . . . 1 2 1 . . . 2 1 1 . . . . . . . . 2 . . . . . 2 3 2 Traps | -11 -10 -10 -10 -9 -8 -7 -7 -7 -7 -7 -6 -6 -6 -6 -6 -5 -5 -5 -5 -5 -4 -4 -4 -4 -3 -3 -2 -1 -1 ------- Run | Yrd Mat Min Exi Min Mat Fac Low Low Zio Dee Pro Fac Low Low Dat Pro Fac Ext Cet Arc Fac Upp Upp War Pro Res Res Acc Com Traps Triggered 10 | . . . . . . 3 . . . . . 1 . . . . . 3 . . . . . . . . . . 3 Indirectly . | . . . . . . . . . . . . . . . . . . . . . . . . . . . . . . Trap Hack Attempts . | . . . . . . . . . . . . . . . . . . . . . . . . . . . . . . Triggered . | . . . . . . . . . . . . . . . . . . . . . . . . . . . . . . Disarmed . | . . . . . . . . . . . . . . . . . . . . . . . . . . . . . . Reprogrammed . | . . . . . . . . . . . . . . . . . . . . . . . . . . . . . . Reused . | . . . . . . . . . . . . . . . . . . . . . . . . . . . . . . Traps Extracted . | . . . . . . . . . . . . . . . . . . . . . . . . . . . . . . Installed . | . . . . . . . . . . . . . . . . . . . . . . . . . . . . . . Triggered 11 | . . . . . 1 . . . . . . . . . . . 2 . . . . . . 7 . . . . 1 Machines | -11 -10 -10 -10 -9 -8 -7 -7 -7 -7 -7 -6 -6 -6 -6 -6 -5 -5 -5 -5 -5 -4 -4 -4 -4 -3 -3 -2 -1 -1 ---------- Run | Yrd Mat Min Exi Min Mat Fac Low Low Zio Dee Pro Fac Low Low Dat Pro Fac Ext Cet Arc Fac Upp Upp War Pro Res Res Acc Com Machines Disabled 31 | . 1 . . . . . . . 3 4 . 4 . . . . 5 2 . 1 5 1 . 1 . . 2 2 . Max in Single Turn 5 | . 1 . . . . . . . 1 1 . 1 . . . . 5 1 . . 4 1 . 1 . . 1 1 . Garrison Access 3 | . . . . . . 1 . . . . . . . . . . . . . . 1 . . . . . . 1 . Machines Repaired . | . . . . . . . . . . . . . . . . . . . . . . . . . . . . . . Machines Dismantled 3 | . . . . . . . . . 3 . . . . . . . . . . . . . . . . . . . . Machines Sabotaged . | . . . . . . . . . . . . . . . . . . . . . . . . . . . . . . Overloaded Fab Kills . | . . . . . . . . . . . . . . . . . . . . . . . . . . . . . . Hacking | -11 -10 -10 -10 -9 -8 -7 -7 -7 -7 -7 -6 -6 -6 -6 -6 -5 -5 -5 -5 -5 -4 -4 -4 -4 -3 -3 -2 -1 -1 --------- Run | Yrd Mat Min Exi Min Mat Fac Low Low Zio Dee Pro Fac Low Low Dat Pro Fac Ext Cet Arc Fac Upp Upp War Pro Res Res Acc Com Machines Accessed 47 | . 7 . 1 1 7 6 . . . . . 6 1 . 4 . . . . . 5 1 . 1 . . . . 7 Terminals 29 | . 7 . . . 6 4 . . . . . 6 . . . . . . . . 1 . . . . . . . 5 Fabricators 1 | . . . . . . 1 . . . . . . . . . . . . . . . . . . . . . . . Repair Stations 4 | . . . . . 1 . . . . . . . . . . . . . . . 1 . . . . . . . 2 Recycling Units 1 | . . . . . . . . . . . . . . . . . . . . . 1 . . . . . . . . Scanalyzers 1 | . . . . . . . . . . . . . . . . . . . . . 1 . . . . . . . . Garrison Access 2 | . . . . . . 1 . . . . . . . . . . . . . . 1 . . . . . . . . Total Hacks 137 | . 16 . 1 1 16 14 . . . . . 15 1 . 32 . . 1 . . 11 1 . 1 . . . . 27 Successful 74 | . 7 . 1 1 7 4 . . . . . 5 1 . 32 . . . . . 7 1 . 1 . . . . 7 Failed 63 | . 9 . . . 9 10 . . . . . 10 . . . . . 1 . . 4 . . . . . . . 20 Catastrophic 14 | . 1 . . . 2 2 . . . . . 3 . . . . . . . . 1 . . . . . . . 5 Database Lockouts . | . . . . . . . . . . . . . . . . . . . . . . . . . . . . . . Manual 63 | . 16 . 1 . 14 10 . . . . . 7 . . . . . 1 1 . 3 . . 2 . . . . 8 Terminals 79 | . 16 . . . 14 10 . . . . . 15 . . . . . 1 . . 2 . . . . . . . 21 Fabricators 2 | . . . . . . 2 . . . . . . . . . . . . . . . . . . . . . . . Repair Stations 10 | . . . . . 2 . . . . . . . . . . . . . . . 2 . . . . . . . 6 Recycling Units 2 | . . . . . . . . . . . . . . . . . . . . . 2 . . . . . . . . Scanalyzers 3 | . . . . . . . . . . . . . . . . . . . . . 3 . . . . . . . . Garrison Access 4 | . . . . . . 2 . . . . . . . . . . . . . . 2 . . . . . . . . Terminal Hacks 45 | . . . 1 1 . 1 . . . . . 4 1 . 32 . . . . . . 1 . 1 . . . . 3 Record 11 | . . . . . . . . . . . . . . . 11 . . . . . . . . . . . . . . Part Schematic 11 | . . . . . . 1 . . . . . . . . 10 . . . . . . . . . . . . . . Robot Schematic 8 | . . . . . . . . . . . . . . . 8 . . . . . . . . . . . . . . Prototype ID Bank 3 | . . . . . . . . . . . . . . . 3 . . . . . . . . . . . . . . Open Door 5 | . . . . 1 . . . . . . . . 1 . . . . . . . . 1 . 1 . . . . 1 Branch Access Points 1 | . . . . . . . . . . . . 1 . . . . . . . . . . . . . . . . . Terminal Index 1 | . . . . . . . . . . . . . . . . . . . . . . . . . . . . . 1 Unreport Threat 3 | . . . . . . . . . . . . 3 . . . . . . . . . . . . . . . . . Derelict Proto ID Bank 1 | . . . 1 . . . . . . . . . . . . . . . . . . . . . . . . . . Disengage Seal 1 | . . . . . . . . . . . . . . . . . . . . . . . . . . . . . 1 Fabricator Hacks 2 | . . . . . . 2 . . . . . . . . . . . . . . . . . . . . . . . Load Schematic 1 | . . . . . . 1 . . . . . . . . . . . . . . . . . . . . . . . Build 1 | . . . . . . 1 . . . . . . . . . . . . . . . . . . . . . . . Repair Station Hacks 6 | . . . . . 2 . . . . . . . . . . . . . . . 2 . . . . . . . 2 Scan Component 3 | . . . . . 1 . . . . . . . . . . . . . . . 1 . . . . . . . 1 Repair 3 | . . . . . 1 . . . . . . . . . . . . . . . 1 . . . . . . . 1 Recycling Unit Hacks 1 | . . . . . . . . . . . . . . . . . . . . . 1 . . . . . . . . Retrieve Components 1 | . . . . . . . . . . . . . . . . . . . . . 1 . . . . . . . . Scanalyzer 2 | . . . . . . . . . . . . . . . . . . . . . 2 . . . . . . . . Insert Component 1 | . . . . . . . . . . . . . . . . . . . . . 1 . . . . . . . . Analyze 1 | . . . . . . . . . . . . . . . . . . . . . 1 . . . . . . . . Garrison Access Hacks 2 | . . . . . . 1 . . . . . . . . . . . . . . 1 . . . . . . . . Seal Access 2 | . . . . . . 1 . . . . . . . . . . . . . . 1 . . . . . . . . Unauthorized Hacks 16 | . 7 . . . 5 . . . . . . 1 . . . . . . . . 1 . . . . . . . 2 Terminals 15 | . 7 . . . 5 . . . . . . 1 . . . . . . . . . . . . . . . . 2 Assimilate 1 | . 1 . . . . . . . . . . . . . . . . . . . . . . . . . . . . Botnet 3 | . . . . . . . . . . . . 1 . . . . . . . . . . . . . . . . 2 Operators 1 | . 1 . . . . . . . . . . . . . . . . . . . . . . . . . . . . Skim 10 | . 5 . . . 5 . . . . . . . . . . . . . . . . . . . . . . . . Fabricators . | . . . . . . . . . . . . . . . . . . . . . . . . . . . . . . Repair Stations . | . . . . . . . . . . . . . . . . . . . . . . . . . . . . . . Recycling Units 1 | . . . . . . . . . . . . . . . . . . . . . 1 . . . . . . . . Mask 1 | . . . . . . . . . . . . . . . . . . . . . 1 . . . . . . . . Scanalyzers . | . . . . . . . . . . . . . . . . . . . . . . . . . . . . . . Garrison Access . | . . . . . . . . . . . . . . . . . . . . . . . . . . . . . . Data Cores Recovered . | . . . . . . . . . . . . . . . . . . . . . . . . . . . . . . Used . | . . . . . . . . . . . . . . . . . . . . . . . . . . . . . . Hacking Detections 34 | . 6 . . . 7 5 . . . . . 6 . . . . . 1 . . 4 . . . . . . . 5 Full Trace Events 3 | . . . . . . 1 . . . . . 1 . . . . . . . . . . . . . . . . 1 Feedback Events . | . . . . . . . . . . . . . . . . . . . . . . . . . . . . . . Feedback Blocked . | . . . . . . . . . . . . . . . . . . . . . . . . . . . . . . Robot Schematics Acquired 8 | . . . . . . . . . . . . . . . 8 . . . . . . . . . . . . . . Robots Built . | . . . . . . . . . . . . . . . . . . . . . . . . . . . . . . Authchips . | . . . . . . . . . . . . . . . . . . . . . . . . . . . . . . Time . | . . . . . . . . . . . . . . . . . . . . . . . . . . . . . . Total Robot Build Rating . | . . . . . . . . . . . . . . . . . . . . . . . . . . . . . . Part Schematics Acquired 12 | . . . . . . 1 . . . . . . . . 10 . . . . . 1 . . . . . . . . Parts Built 2 | . . . . . . 2 . . . . . . . . . . . . . . . . . . . . . . . Authchips . | . . . . . . . . . . . . . . . . . . . . . . . . . . . . . . Time 31 | . . . . . . 31 . . . . . . . . . . . . . . . . . . . . . . . Total Part Build Rating 4 | . . . . . . 4 . . . . . . . . . . . . . . . . . . . . . . . Parts Repaired 3 | . . . . . 1 . . . . . . . . . . . . . . . 1 . . . . . . . 1 Time 142 | . . . . . 44 . . . . . . . . . . . . . . . 44 . . . . . . . 54 Parts Recycled . | . . . . . . . . . . . . . . . . . . . . . . . . . . . . . . Recycled Matter . | . . . . . . . . . . . . . . . . . . . . . . . . . . . . . . Retrieved Matter . | . . . . . . . . . . . . . . . . . . . . . . . . . . . . . . Retrieved Components . | . . . . . . . . . . . . . . . . . . . . . . . . . . . . . . Parts Scanalyzed 1 | . . . . . . . . . . . . . . . . . . . . . 1 . . . . . . . . Part Schematics Acquired 1 | . . . . . . . . . . . . . . . . . . . . . 1 . . . . . . . . Parts Damaged . | . . . . . . . . . . . . . . . . . . . . . . . . . . . . . . Bothacking | -11 -10 -10 -10 -9 -8 -7 -7 -7 -7 -7 -6 -6 -6 -6 -6 -5 -5 -5 -5 -5 -4 -4 -4 -4 -3 -3 -2 -1 -1 ------------ Run | Yrd Mat Min Exi Min Mat Fac Low Low Zio Dee Pro Fac Low Low Dat Pro Fac Ext Cet Arc Fac Upp Upp War Pro Res Res Acc Com Used RIF Installer . | . . . . . . . . . . . . . . . . . . . . . . . . . . . . . . Robots Hacked 2 | . . . . . . . . . . . . . . . . . . . . . . . . . . . . . 2 Non-combat . | . . . . . . . . . . . . . . . . . . . . . . . . . . . . . . Combat 1 | . . . . . . . . . . . . . . . . . . . . . . . . . . . . . 1 Robot Hacks Applied 1 | . . . . . . . . . . . . . . . . . . . . . . . . . . . . . 1 parse_system 1 | . . . . . . . . . . . . . . . . . . . . . . . . . . . . . 1 Manual 1 | . . . . . . . . . . . . . . . . . . . . . . . . . . . . . 1 Relay Couplers Released 2 | . . . . . . . . . . . . . . . . . . . . . . . . . . . . 2 . Machine Destruction 2 | . . . . . . . . . . . . . . . . . . . . . . . . . . . . 2 . Fabnet Peak Effective % . | . . . . . . . . . . . . . . . . . . . . . . . . . . . . . . Robots Rewired 9 | . . . . . . . . . . . . . . . . . . 6 . . . 3 . . . . . . . Allies Hacked 3 | . . . . . . . . . . . . . . . . . . 3 . . . . . . . . . . . Hacks Repelled 1 | . . . . . . . . . . . . . . . . . . . . . . . . . . . . . 1 Allies | -11 -10 -10 -10 -9 -8 -7 -7 -7 -7 -7 -6 -6 -6 -6 -6 -5 -5 -5 -5 -5 -4 -4 -4 -4 -3 -3 -2 -1 -1 -------- Run | Yrd Mat Min Exi Min Mat Fac Low Low Zio Dee Pro Fac Low Low Dat Pro Fac Ext Cet Arc Fac Upp Upp War Pro Res Res Acc Com Total Allies 33 | . 1 . . . . . . . 4 . . . . . . . . 20 5 . . 3 . . . . . . . Largest Group 11 | . 1 1 . . . . . . 4 4 . . . . . . . 11 7 6 . 3 3 . . . . . . Highest-Rated Group 667 | . 10 10 . . . . . . 101 101 . . . . . . . 449 667 639 . 138 138 . . . . . . Highest-Rated Ally 159 | . 10 10 . . . . . . 31 31 . . . . . . . 159 159 159 . 46 46 . . . . . . Total Orders 22 | . . . . . . . . . . . . . . . . . 1 5 2 2 . . 2 . . 2 . 5 3 STAY 4 | . . . . . . . . . . . . . . . . . . 1 1 1 . . 1 . . . . . . ROAM 1 | . . . . . . . . . . . . . . . . . . . . . . . 1 . . . . . . FOLLOW 2 | . . . . . . . . . . . . . . . . . . 1 . 1 . . . . . . . . . RETURN 15 | . . . . . . . . . . . . . . . . . 1 3 1 . . . . . . 2 . 5 3 Ally Attacks 314 | . . . . . . . . . . 27 . . . . . . . 169 50 59 . . 9 . . . . . . Total Damage 8676 | . . . . . . . . . . 207 . . . . . . . 4119 1298 2756 . . 296 . . . . . . Kills 44 | . . . . . . . . . . 1 . . . . . . . 24 7 12 . . . . . . . . . Allies Corrupted 1 | . . . . . . . . . . . . . . . . . . . . . . . 1 . . . . . . Allies Melted 2 | . . . . . . . . . . . . . . . . . . . . . . . . . . . 2 . . Intel | -11 -10 -10 -10 -9 -8 -7 -7 -7 -7 -7 -6 -6 -6 -6 -6 -5 -5 -5 -5 -5 -4 -4 -4 -4 -3 -3 -2 -1 -1 ------- Run | Yrd Mat Min Exi Min Mat Fac Low Low Zio Dee Pro Fac Low Low Dat Pro Fac Ext Cet Arc Fac Upp Upp War Pro Res Res Acc Com Robot Analysis Total . | . . . . . . . . . . . . . . . . . . . . . . . . . . . . . . Derelict Logs Recovered 6 | . . . . 1 . . 1 . . . 1 . . . . 2 . . . . . 1 . . . . . . . Drone Launches 15 | . . . . . . . . . . . . . . . . . 1 3 1 . . . . . . 2 . 5 3 Drone Recoveries 15 | . . . . . . . . . . . . . . . . . 1 3 1 . . . . . . 2 . 5 3 Exploration | -11 -10 -10 -10 -9 -8 -7 -7 -7 -7 -7 -6 -6 -6 -6 -6 -5 -5 -5 -5 -5 -4 -4 -4 -4 -3 -3 -2 -1 -1 ------------- Run | Yrd Mat Min Exi Min Mat Fac Low Low Zio Dee Pro Fac Low Low Dat Pro Fac Ext Cet Arc Fac Upp Upp War Pro Res Res Acc Com Turns Passed 39184 | 87 1199 199 466 374 1770 747 1096 754 1990 1401 1827 1566 799 816 179 1730 1399 1939 500 1040 2148 1340 1651 987 3130 534 1358 2677 3481 Spaces Moved 16319 | 41 439 87 290 195 570 428 564 468 1177 833 704 425 303 385 86 677 577 754 192 113 887 434 609 418 1083 261 779 1135 1405 Core 61 | 10 . . . . . . . . . . . . . . . . . . . . . . . . . . . . 51 Treads 1251 | 30 439 87 290 195 210 . . . . . . . . . . . . . . . . . . . . . . . . Legs 10435 | 1 . . . . 10 . . . . . . 377 303 385 86 677 577 754 192 113 887 434 609 418 1083 261 779 1135 1354 Wheels 4572 | . . . . . 350 428 564 468 1177 833 704 48 . . . . . . . . . . . . . . . . . Hover . | . . . . . . . . . . . . . . . . . . . . . . . . . . . . . . Flight . | . . . . . . . . . . . . . . . . . . . . . . . . . . . . . . Fastest Speed 50 | 50 160 160 160 160 130 160 160 160 160 100 160 115 210 210 210 210 210 210 210 180 180 210 180 180 210 175 145 145 50 Average Speed 181 | 147 160 160 160 160 189 160 160 160 160 138 174 202 210 210 210 210 210 210 237 216 211 210 210 202 210 178 145 154 161 Slowest Speed 3600 | 200 160 160 160 160 400 160 160 160 160 160 175 210 210 210 210 210 210 210 240 240 240 210 240 210 240 240 145 235 3600 Overloaded Moves . | . . . . . . . . . . . . . . . . . . . . . . . . . . . . . . Propulsion Burnouts . | . . . . . . . . . . . . . . . . . . . . . . . . . . . . . . Robots Hopped . | . . . . . . . . . . . . . . . . . . . . . . . . . . . . . . Cave-ins Triggered . | . . . . . . . . . . . . . . . . . . . . . . . . . . . . . . Exploration Rate (%) 51 | 4 85 25 70 44 52 13 67 60 85 80 79 14 45 67 70 71 15 81 76 89 18 51 58 53 83 9 19 26 41 Regions Visited 29 Branch Regions 20 Pre-discovered Areas 6 | . . . . . 2 . 1 . 1 . . . . . 1 1 . . . . . . . . . . . . . Known Exits Taken 14 | . 1 1 . . 1 . . . . . . 1 . . . 1 . 1 . 1 1 1 1 1 1 1 1 . . Unknown Exits Taken 15 | 1 . . 1 1 . 1 1 1 1 1 1 . 1 1 1 . 1 . 1 . . . . . . . . 1 . Scrap Searched 23 | . . . . 1 . . 3 2 2 . 2 . 2 3 . 3 . . . . . 1 1 . 3 . . . . Spaces Dug 303 | . . . . 9 5 6 . 1 . 15 1 28 . . . 5 60 3 . . 69 5 2 . 10 1 12 41 30 Terrain Destroyed 657 | . . . . 43 55 6 40 1 . 94 16 44 . 1 . 11 64 14 1 . 81 13 7 3 18 1 37 64 43 Melee 24 | . . . . . 5 6 . 1 . 12 . . . . . . . . . . . . . . . . . . . Projectile 318 | . . . . . . . . . . 5 16 44 . 1 . 11 16 14 1 . 39 13 7 3 18 1 22 64 43 AOE 315 | . . . . 43 50 . 40 . . 77 . . . . . . 48 . . . 42 . . . . . 15 . . Terrain Rammed . | . . . . . . . . . . . . . . . . . . . . . . . . . . . . . . Walls Destroyed . | . . . . . . . . . . . . . . . . . . . . . . . . . . . . . . Machines Disabled . | . . . . . . . . . . . . . . . . . . . . . . . . . . . . . . Actions | -11 -10 -10 -10 -9 -8 -7 -7 -7 -7 -7 -6 -6 -6 -6 -6 -5 -5 -5 -5 -5 -4 -4 -4 -4 -3 -3 -2 -1 -1 --------- Run | Yrd Mat Min Exi Min Mat Fac Low Low Zio Dee Pro Fac Low Low Dat Pro Fac Ext Cet Arc Fac Upp Upp War Pro Res Res Acc Com Total 24960 | 56 881 111 293 239 1191 480 738 472 1229 1007 1269 1041 470 394 85 958 726 1047 223 908 1078 837 961 553 1921 331 961 1976 2524 Wait 6635 | 1 408 3 . 24 509 27 151 2 6 36 517 526 160 . . 235 94 175 15 761 78 309 315 104 748 40 95 609 687 Move 16290 | 40 438 86 289 194 569 427 563 467 1176 832 703 424 302 384 85 676 576 753 191 112 886 433 608 417 1082 260 778 1134 1405 Hop . | . . . . . . . . . . . . . . . . . . . . . . . . . . . . . . Pick Up 306 | 2 4 2 1 6 21 5 1 . 6 25 3 25 3 4 . 20 10 8 3 19 33 8 1 12 21 10 24 17 12 Fast Attach 33 | 8 . . . . 4 1 1 . 1 6 . . . . . . . . . . . . . . . . . 2 10 Attach 39 | . . . . 1 3 2 . . 1 11 . . . . . . . . . . . . . . . . 2 1 18 Detach 112 | 1 . . . . . . . . 1 1 8 2 2 . . 3 4 . . 6 1 10 4 . 14 . 4 16 35 Swap 256 | . 2 3 1 6 16 6 2 1 4 12 5 3 1 1 . 3 10 9 3 7 18 12 13 5 8 12 16 27 50 Drop 189 | . 1 . 2 . 14 3 1 1 6 10 4 8 2 4 . 3 7 8 2 2 10 8 7 10 25 8 13 22 8 Fire 866 | 4 28 17 . 8 22 . 18 . . 40 29 53 . 1 . 18 25 36 9 . 52 24 10 5 22 1 29 148 267 Melee 101 | . . . . . 32 9 1 1 . 34 . . . . . . . . . 1 . . . . . . . . 23 Ram . | . . . . . . . . . . . . . . . . . . . . . . . . . . . . . . Kick . | . . . . . . . . . . . . . . . . . . . . . . . . . . . . . . Crush 1 | . . . . . 1 . . . . . . . . . . . . . . . . . . . . . . . . Escape Stasis 19 | . . . . . . . . . . . . . . . . . . 10 . . . . . . . . . . 9 Rewire 84 | . . . . . . . . . . . . . . . . . . 48 . . . 33 3 . . . . . . Trap . | . . . . . . . . . . . . . . . . . . . . . . . . . . . . . . Miscellaneous 29 | . . . . . . . . . 28 . . . . . . . . . . . . . . . 1 . . . . Route ------- -11/Scrapyard -10/Materials (discovered 4 exits: *Mat x3 / *Min) -10/Mines (discovered 4 exits: Mat x2 / *Exi / Sub) -10/Exiles -9/Mines -8/Materials -7/Factory (discovered 2 exits: *Fac / [*Low]) -7/Lower Caves -7/Lower Caves -7/Zion (discovered 2 exits: [*Dee] / [*Pro]) -7/Deep Caves -6/Proximity Caves -6/Factory (discovered 2 exits: *Low x2) -6/Lower Caves -6/Lower Caves -6/Data Miner -5/Proximity Caves -5/Factory -5/Extension (discovered 3 exits: *Fac x2 / *Cet) -5/Cetus (discovered 2 exits: *Fac / *Arc) -5/Archives (discovered 2 exits: *Fac / [*Hub]) -4/Factory -4/Upper Caves -4/Upper Caves (discovered 2 exits: *Res / *War) -4/Warlord -3/Proximity Caves -3/Research (discovered 2 exits: *Res / *Tes) -2/Research -1/Access (discovered 2 exits: Sur / *Com) -1/Command History --------- Turn | Location | Event 18 | -11/Scrapyard | Discovered new exit (range 16) 88 | -11/Scrapyard | Entered Materials 163 | -10/Materials | Discovered new exit (range 9) 307 | -10/Materials | Build established: Mutant 352 | -10/Materials | Discovered new exit (range 3) 583 | -10/Materials | Discovered new exit (range 4) 883 | -10/Materials | Learned Storage security intel 949 | -10/Materials | Learned 4 Subcaves zone layouts 1006 | -10/Materials | Identified exit to Mines 1006 | -10/Materials | Identified exit to Materials 1053 | -10/Materials | Learned location of 1 exit from Storage 1092 | -10/Materials | Learned 4 Subcaves zone layouts 1211 | -10/Materials | Learned location of 2 exits from Mines 1262 | -10/Materials | Learned location of 2 exits from Subcaves 1287 | -10/Materials | Entered Mines 1287 | -10/Mines | Accompanied by 1 ally 1289 | -10/Mines | Identified exit to Subcaves 1289 | -10/Mines | Identified exit to Exiles 1295 | -10/Mines | YI-UF0 nonchalantly dropped a Grenade Launcher on the ground 1331 | -10/Mines | Murdered YI-UF0 1336 | -10/Mines | Found Prototype Storage 1336 | -10/Mines | Identified YI-UF0's Bottomless Matter Pit 1479 | -10/Mines | Deemed a non-threat by the Exiles lab entrance 1486 | -10/Mines | Entered Exiles 1525 | -10/Exiles | Met 8R-AWN 1554 | -10/Exiles | Met EX-HEX 1597 | -10/Exiles | Met EX-BIN 1619 | -10/Exiles | Aligned with FarCom system 1621 | -10/Exiles | Given EX-Vault access code 1661 | -10/Exiles | Opened EX-Vault 1667 | -10/Exiles | Found Longsword +1 1700 | -10/Exiles | Warned to stay clear of 0b10 Research branches 1753 | -10/Exiles | Met EX-DEC 1940 | -10/Exiles | Discovered new exit (range 10) 1952 | -10/Exiles | Left Exiles lab with Longsword +1 1952 | -10/Exiles | Entered Mines 1960 | -9/Mines | Met a Derelict shopkeep closing up shop 2225 | -9/Mines | Learned Materials emergency access door positions 2312 | -9/Mines | Destroyed 7 combat bots 2315 | -9/Mines | Discovered new exit (range 7) 2326 | -9/Mines | Entered Materials 2326 | -8/Materials | Evolved 4 slots: Utility x4 3287 | -8/Materials | Repaired Med. Reactive Plating 3699 | -8/Materials | Identified exit to Factory 3704 | -8/Materials | Build established: Gladiator 3773 | -8/Materials | Learned location of Recycling (-7) 3838 | -8/Materials | Learned location of 1 exit from Storage 3970 | -8/Materials | Learned location of 1 exit from Extension 4012 | -8/Materials | Learned Storage trap positions 4064 | -8/Materials | Learned Factory repair station intel 4096 | -8/Materials | Entered Factory 4096 | -7/Factory | Evolved 2 slots: Power x1, Utility x1 4097 | -7/Factory | Loaded intel: 6 repair station locations 4463 | -7/Factory | Discovered new exit (range 3) 4538 | -7/Factory | Discovered new exit (range 16) 4751 | -7/Factory | Fabricated Plasma Cutter (x2) 4843 | -7/Factory | Entered Lower Caves 5332 | -7/Lower Caves | Build established: Mutant 5933 | -7/Lower Caves | Discovered new exit (range 4) 5939 | -7/Lower Caves | Entered another Lower Caves area 5940 | -7/Lower Caves | Encountered a Warlord checkpoint 6685 | -7/Lower Caves | Discovered new exit (range 6) 6690 | -7/Lower Caves | Attracted the attention of an 0b10 outpost 6693 | -7/Lower Caves | Entered Zion 6847 | -7/Zion | Discovered new exit (range 10) 7140 | -7/Zion | Given the Hacking Drone Bay 7145 | -7/Zion | Found Prototype Device 7441 | -7/Zion | Discovered new exit (range 5) 7444 | -7/Zion | Saw the warning signs outside the Deep Caves entrance 7652 | -7/Zion | Learned location of Data Miner (-6) 7857 | -7/Zion | Found Prototype Special Weapon 7857 | -7/Zion | Identified RU-N14's Throwing Claymores 7860 | -7/Zion | Found RU-N14's Throwing Claymores 7862 | -7/Zion | Found RU-N14's Throwing Claymores 7865 | -7/Zion | Found RU-N14's Throwing Claymores 8309 | -7/Zion | Gained Derelict followers 8683 | -7/Zion | Entered Deep Caves 8683 | -7/Deep Caves | Accompanied by 4 allies 8843 | -7/Deep Caves | Attacked by Z-Imprinter 8858 | -7/Deep Caves | Destroyed Z-Imprinter 8891 | -7/Deep Caves | Lost 3 allies 8986 | -7/Deep Caves | Found Prototype Protection 8986 | -7/Deep Caves | Identified Zio. Weapon Casing 9052 | -7/Deep Caves | Z-Facility disabled 9140 | -7/Deep Caves | Discovered new exit (range 15) 9521 | -7/Deep Caves | Spotted AG-16980 9544 | -7/Deep Caves | Destroyed AG-16980 9575 | -7/Deep Caves | Spotted AG-12394 9623 | -7/Deep Caves | Destroyed AG-12394 9805 | -7/Deep Caves | Exposed GOLEM chamber 9806 | -7/Deep Caves | Triggered Deep Caves wall 9806 | -7/Deep Caves | Spotted AS-18284 9806 | -7/Deep Caves | Spotted AS-74050 9815 | -7/Deep Caves | Core integrity fell below 50% 9843 | -7/Deep Caves | Destroyed AS-74050 9855 | -7/Deep Caves | Destroyed 38 combat bots 9869 | -7/Deep Caves | Found GOLEM Unit 9874 | -7/Deep Caves | Found GOLEM Unit 9880 | -7/Deep Caves | Found GOLEM Unit 9994 | -7/Deep Caves | Found Longsword +1 10084 | -7/Deep Caves | Entered Proximity Caves 10169 | -6/Proximity Caves | Build established: Golem 10476 | -6/Proximity Caves | Learned Factory terminal intel 11841 | -6/Proximity Caves | Discovered new exit (range 11) 11888 | -6/Proximity Caves | Attracted the attention of an 0b10 checkpoint 11911 | -6/Proximity Caves | Entered Factory 11911 | -6/Factory | Evolved 2 slots: Utility x2 11912 | -6/Factory | Loaded intel: 26 terminal locations 11975 | -6/Factory | Found GOLEM Unit 13266 | -6/Factory | Identified exit to Lower Caves 13477 | -6/Factory | Entered Lower Caves 14188 | -6/Lower Caves | Discovered new exit (range 8) 14276 | -6/Lower Caves | Entered another Lower Caves area 14533 | -6/Lower Caves | Found DRS Beacon 14844 | -6/Lower Caves | Attracted the attention of an 0b10 checkpoint 15063 | -6/Lower Caves | Discovered new exit (range 14) 15092 | -6/Lower Caves | Entered Data Miner 15092 | -6/Data Miner | Discovered new exit (range 6) 15132 | -6/Data Miner | Met Data Miner 15181 | -6/Data Miner | Learned location of Section 7 (-2) 15181 | -6/Data Miner | Acquired the access code to Warlord's prototype stash 15216 | -6/Data Miner | Received God Mode back door access code from Data Miner 15271 | -6/Data Miner | Entered Proximity Caves 15516 | -5/Proximity Caves | Attracted the attention of an 0b10 checkpoint 16473 | -5/Proximity Caves | Learned location of Armory (-3) 16481 | -5/Proximity Caves | Identified exit to Factory 17001 | -5/Proximity Caves | Entered Factory 17001 | -5/Factory | Evolved 2 slots: Utility x2 17129 | -5/Factory | Identified Hacking Drone Bay 17826 | -5/Factory | Cargo convoy interrupted 18363 | -5/Factory | Discovered new exit (range 14) 18400 | -5/Factory | Entered Extension 18401 | -5/Extension | Identified exit to Factory 18559 | -5/Extension | Rescued a captive Derelict 18678 | -5/Extension | Rescued a captive Derelict 18688 | -5/Extension | Rescued a captive Derelict 18889 | -5/Extension | Identified exit to Cetus 19159 | -5/Extension | Rescued a captive Derelict 19160 | -5/Extension | Rescued a captive Derelict 19220 | -5/Extension | Rescued a captive Derelict 19221 | -5/Extension | Rescued a captive Derelict 19306 | -5/Extension | Rescued a captive Derelict 19307 | -5/Extension | Rescued a captive Derelict 19332 | -5/Extension | Rescued A7 19707 | -5/Extension | Spotted B-75 Beast 19725 | -5/Extension | Allies destroyed B-75 Beast 19727 | -5/Extension | Spotted B-75 Beast 19741 | -5/Extension | Allies destroyed B-75 Beast 19773 | -5/Extension | Lost 6 allies 19797 | -5/Extension | Rescued a captive Derelict 19919 | -5/Extension | Rescued a captive Derelict 20159 | -5/Extension | Rescued a captive Derelict 20160 | -5/Extension | Rescued a captive Derelict 20309 | -5/Extension | Incoming investigation squad redirected 20326 | -5/Extension | Disrupted transfer network 20339 | -5/Extension | Entered Cetus 20339 | -5/Cetus | Accompanied by 6 allies (A7) 20344 | -5/Cetus | Acquired a Cetus Manufacturing Module code from A7 20365 | -5/Cetus | Lost 5 allies 20366 | -5/Cetus | Spotted Cetus Guard 20366 | -5/Cetus | Spotted Cetus Guard 20368 | -5/Cetus | Spotted Cetus Guard 20370 | -5/Cetus | Spotted Cetus Guard 20374 | -5/Cetus | Allies destroyed Cetus Guard 20383 | -5/Cetus | Allies destroyed Cetus Guard 20390 | -5/Cetus | Allies destroyed Cetus Guard 20396 | -5/Cetus | Allies destroyed Cetus Guard 20426 | -5/Cetus | Lost 3 allies 20571 | -5/Cetus | Escorted A7 to Cetus Mainframe 20594 | -5/Cetus | Started Cetus Manufacturing Module 20619 | -5/Cetus | Manufactured an Enhanced Grunt 20623 | -5/Cetus | Discovered new exit (range 15) 20644 | -5/Cetus | Manufactured an Enhanced Grunt 20669 | -5/Cetus | Manufactured an Enhanced Grunt 20671 | -5/Cetus | Spotted Cetus Guard 20671 | -5/Cetus | Spotted Cetus Guard 20674 | -5/Cetus | Allies destroyed Cetus Guard 20675 | -5/Cetus | Spotted Cetus Guard 20676 | -5/Cetus | Spotted Cetus Guard 20681 | -5/Cetus | Destroyed Cetus Guard 20683 | -5/Cetus | Allies destroyed Cetus Guard 20687 | -5/Cetus | Destroyed Cetus Guard 20694 | -5/Cetus | Manufactured an Enhanced Grunt 20702 | -5/Cetus | Discovered exit to Factory (range 15) 20716 | -5/Cetus | Met Revision 17 20719 | -5/Cetus | Manufactured an Enhanced Grunt 20839 | -5/Cetus | Entered Archives 20839 | -5/Archives | Accompanied by 6 allies (A7) 20844 | -5/Archives | Received a hacking code to weaken MAIN.C 20868 | -5/Archives | Met Zhirov 20874 | -5/Archives | Reinforcements dispatched to Archives 20919 | -5/Archives | Reinforcements dispatched to Archives 20921 | -5/Archives | Zhirov warped through subspace 20927 | -5/Archives | Unable to access archive contents 20936 | -5/Archives | Discovered new exit (range 13) 20939 | -5/Archives | Zhirov detonated Archives 20970 | -5/Archives | Lost 6 parts (5u1w) 20970 | -5/Archives | Lost 5 allies 21848 | -5/Archives | Discovered exit to Factory (range 16) 21879 | -5/Archives | Entered Factory 21879 | -4/Factory | Evolved 2 slots: Utility x2 21966 | -4/Factory | Repaired Imp. Cooling System 22252 | -4/Factory | Garrison activated, responded to threat 22430 | -4/Factory | Destroyed 7 combat bots 22610 | -4/Factory | Discovered new exit (range 15) 23995 | -4/Factory | Identified exit to Upper Caves 24027 | -4/Factory | Entered Upper Caves 24229 | -4/Upper Caves | Encountered a Warlord checkpoint 25000 | -4/Upper Caves | Discovered new exit (range 9) 25015 | -4/Upper Caves | Identified exit to Upper Caves 25102 | -4/Upper Caves | Learned Research security intel 25285 | -4/Upper Caves | Attacked by a delusional Derelict stockpiling Unaware 25367 | -4/Upper Caves | Entered another Upper Caves area 25367 | -4/Upper Caves | Accompanied by 3 allies 25372 | -4/Upper Caves | P-70 Sage assimilated allied NS-HQE(g) 25462 | -4/Upper Caves | Discovered new exit (range 14) 25485 | -4/Upper Caves | Identified exit to Research 26570 | -4/Upper Caves | Discovered new exit (range 8) 26584 | -4/Upper Caves | Identified exit to Warlord 27018 | -4/Upper Caves | Entered Warlord 27403 | -4/Warlord | Visited the Vortex Lab 27405 | -4/Warlord | Warlord's base attacked by MAIN.C 27562 | -4/Warlord | Met Warlord 27583 | -4/Warlord | Opened Warlord's prototype stash 27590 | -4/Warlord | Found Prototype Reactor 27597 | -4/Warlord | Found Prototype Device 27606 | -4/Warlord | Found Prototype Device 27614 | -4/Warlord | Found Prototype Processor 27620 | -4/Warlord | Found Prototype Hackware 27664 | -4/Warlord | Identified Thermal Barrier 27695 | -4/Warlord | Identified Exp. Cloaking Device 27717 | -4/Warlord | Lost 3 allies 27755 | -4/Warlord | Warlord forces counterattacked 27830 | -4/Warlord | Spotted Executioner 27852 | -4/Warlord | Spotted Striker 27911 | -4/Warlord | Lost 13 allies 27941 | -4/Warlord | Spotted Executioner 27958 | -4/Warlord | Destroyed Executioner 27972 | -4/Warlord | Found Prototype Processor 27984 | -4/Warlord | Discovered new exit (range 12) 28003 | -4/Warlord | Identified exit to Proximity Caves 28005 | -4/Warlord | Entered Proximity Caves 28009 | -3/Proximity Caves | Lost 13 allies 28039 | -3/Proximity Caves | Activated DRS Beacon 29136 | -3/Proximity Caves | Discovered exit to Research (range 7) 31135 | -3/Proximity Caves | Entered Research 31135 | -3/Research | Evolved 2 slots: Utility x2 31335 | -3/Research | Revision forces began assault on 0b10 31336 | -3/Research | Met up with Revision 17++ 31542 | -3/Research | Discovered new exit (range 8) 31554 | -3/Research | Discovered new exit (range 10) 31636 | -3/Research | Identified exit to Research 31654 | -3/Research | Identified exit to Testing 31669 | -3/Research | Entered another Research area 31669 | -2/Research | Warlord forces began assault on 0b10 31669 | -2/Research | Evolved 2 slots: Propulsion x2 31779 | -2/Research | Research machine network offline 31911 | -2/Research | Borebot progress halted 32015 | -2/Research | Identified Exp. Targeting Computer 32051 | -2/Research | Identified Vortex Chain Reactor 32063 | -2/Research | Identified Exp. Target Analyzer 32084 | -2/Research | Identified Ghost Barrier 32248 | -2/Research | Borebot progress halted 32296 | -2/Research | Borebot progress halted 32635 | -2/Research | Spotted Executioner 32636 | -2/Research | Spotted Executioner 32639 | -2/Research | Spotted Executioner 32641 | -2/Research | Spotted Executioner 32642 | -2/Research | Spotted Striker 32645 | -2/Research | Spotted Striker 32671 | -2/Research | Destroyed Executioner 32673 | -2/Research | Destroyed Executioner 32886 | -2/Research | Discovered new exit (range 16) 32909 | -2/Research | Identified exit to Access 33011 | -2/Research | Spotted Striker 33015 | -2/Research | Spotted Striker 33023 | -2/Research | Destroyed Striker 33027 | -2/Research | Entered Access 33027 | -1/Access | Evolved 2 slots: Utility x1, Weapon x1 33127 | -1/Access | Garrison activated, responded to threat 33588 | -1/Access | Incoming assault squad redirected 33912 | -1/Access | Found Quantum Capacitor 34447 | -1/Access | Identified exit to Surface 35270 | -1/Access | Discovered new exit (range 7) 35277 | -1/Access | First assault squad dispatched 35305 | -1/Access | Incoming assault squad redirected 35704 | -1/Access | Entered Command 35763 | -1/Command | System corruption reached 10% 36737 | -1/Command | First assault squad dispatched 36753 | -1/Command | Incoming assault squad redirected 37009 | -1/Command | Spotted B-99 Colossus 37112 | -1/Command | Found Prototype Launcher 37138 | -1/Command | Disengaged cave seal 37138 | -1/Command | Derelicts emerged from the dark tunnel 37139 | -1/Command | Welcomed Warlord to Command 37377 | -1/Command | Repaired Centrium Medium Armor Plating 37417 | -1/Command | Build established: Hacker-Golem 37610 | -1/Command | Lost 4 allies 37703 | -1/Command | Lost 3 allies 38117 | -1/Command | Warlord commented on Warlord statues 38136 | -1/Command | Destroyed Combat Programmer 38139 | -1/Command | Destroyed Combat Programmer 38150 | -1/Command | Spotted M Guard 38151 | -1/Command | Spotted M Guard 38209 | -1/Command | All MAIN.C guards destroyed 38235 | -1/Command | Lost 4 parts (1n2u1w) 38301 | -1/Command | Found Prototype Device 38301 | -1/Command | Identified AEGIS Remote Shield 38407 | -1/Command | Build established: Scavenger-Golem 38898 | -1/Command | Met MAIN.C 38898 | -1/Command | Hacked MAIN.C using A7's code 38924 | -1/Command | 0b10 Conduit disabled 38935 | -1/Command | MAIN.C activated Command garrisons 38973 | -1/Command | Warlord destroyed during the assault 39053 | -1/Command | Lost 4 parts (4u) 39082 | -1/Command | System corruption reached 30% 39128 | -1/Command | Identified Gui. Micro-nuke Launcher 39137 | -1/Command | Core integrity fell below 50% 39164 | -1/Command | Lost 24 parts (2p5n12u5w) 39174 | -1/Command | Core integrity fell below 20% 39185 | -1/Command | Destroyed by D-83 Annihilator with Micro-nuke Launcher Last Messages --------------- 39136_ Knocked back. 39140_ MAIN.C reaction time slowed by virus. 39157_ System corrupted: Component data lost. 39163_ MAIN.C reaction time slowed by virus. 39172_ System corrupted: IFF burst signal emitted. 39172_ MAIN.C reaction time slowed by virus. 39177_ Slug penetrates Reinforced Barrier. 39177_ Penetrated by Slug. 39177_ Exp. Targeting Computer destroyed. 39177_ Longsword +1 destroyed. 39177_ MAIN.C reaction time slowed by virus. 39177_ Acquired Unknown Ballistic Gun. 39177_ Identified KE Penetrator. 39178_ MAIN.C reaction time slowed by virus. 39180_ KE Penetrator destroyed. 39182_ Acquired 77 matter. 39184_ Acquired Hvy. Machine Gun. 39184_ MAIN.C reaction time slowed by virus. 39185_ Hvy. Machine Gun destroyed. [Achievement: I Was Wrong!] Map ----- +----------------------------------------------------+ | ?????????????????????????????????????????????????? | | ?????????????????????????????????????????????????? | | ?????????????????????????????????????????????????? | | ?????????????????????????????????????????????????? | | ?????????????????????????????????????????????????? | | ?????????????????????????????????????????????????? | | ?????????????????????????????????????????????????? | | ?????????????????????????????????????????????????? | | ?????????????????????????????????????????????????? | | ?????????????????????????????????????????????????? | | ?????????????????????????????????????????????????? | | ?????????????????????????????????????????????????? | | ??????#######################????????????????????? | | ??????#"""""" #????????????????????? | | ??????#"" #????????????????????? | | ??????#""" " g ###################### | | ??????#"" "" gd % | | ??????#" " [b / | | ??????#"" " *e[| h = | | ??????#"" " " % ################### | | ??????# " """"" #?????????????????# | | ??????# " M #?????????????????# | | ??????# g #?????????????????# % | | ??????#""" "g #?????????????????#+++ | | ??????#"" #?????????????????# | | ??????# *%@ #?????????????????# | | ??????# =%= #?????????????????# | | ??????# " " #?????????????????# | | ??????" "%" " #?????????????????# | | ??????" """ " " %= %#?????????????????# | | ??????" " " != #?????????????????#### | | ??????# """" """"" *% #????????????????????? | | ??????# " """ %% #????????????????????? | | ??????# """ " % #????????????????????? | | ??????#######################????????????????????? | | ?????????????????????????????????????????????????? | | ?????????????????????????????????????????????????? | | ?????????????????????????????????????????????????? | | ?????????????????????????????????????????????????? | | ?????????????????????????????????????????????????? | | ?????????????????????????????????????????????????? | | ?????????????????????????????????????????????????? | | ?????????????????????????????????????????????????? | | ?????????????????????????????????????????????????? | | ?????????????????????????????????????????????????? | | ?????????????????????????????????????????????????? | | ?????????????????????????????????????????????????? | | ?????????????????????????????????????????????????? | | ?????????????????????????????????????????????????? | | ?????????????????????????????????????????????????? | +----------------------------------------------------+ Best States ------------- Heat Dissipation 112 Energy Generation 95 Energy Capacity 2700 Matter Stores 1797 Matter Capacity 1800 Sight Range 20 Robot Scan Range 18 Terrain Scan Density 10 Cloak Strength 4 Power Amplification 80 Additional Mass Support 20 Armor Coverage 925 Resistance: KI 30 Resistance: TH 50 Resistance: EX 15 Resistance: EM 20 Resistance: I 15 Resistance: S 15 Resistance: P 15 Propulsion Shielding 33 Utility Shielding 66 Weapon Shielding 100 Point Defense Rating 160 Weapon Cycling 20 Melee Speed Boost 20 Phase Shifting 8 Evasion (%) 50 Targeting Accuracy 20 Melee Accuracy 18 Target Analysis 5 Core Analysis 8 Recoil Reduction 2 Particle Charging 25 Offensive Hacking 26 Defensive Hacking 32 Item Schematics ----------------- Plasma Cutter | -7/Factory | Hacked Combat Drone Bay | -6/Data Miner | Free Lgt. Regenerative Plating | -6/Data Miner | Free Cld. Nuclear Pulse Thruster | -6/Data Miner | Free Prc. Matter Filter | -6/Data Miner | Free Ionic Axe | -6/Data Miner | Free Imp. Gyrokinetic Inverter | -6/Data Miner | Free Lrn. Terrain Scanner | -6/Data Miner | Free Dispersion Rifle | -6/Data Miner | Free Remote Force Field | -6/Data Miner | Free Nova Cannon | -6/Data Miner | Free Arm. Huge Wheel | -4/Factory | Scanalyzed Robot Schematics ------------------ X-62 Marksman | -6/Data Miner | Free M-22 Extractor | -6/Data Miner | Free B-48 Gladiator | -6/Data Miner | Free L-41 Fighter | -6/Data Miner | Free L-61 Swordsman | -6/Data Miner | Free G-50 Soldier | -6/Data Miner | Free H-66 Slayer | -6/Data Miner | Free A-15 Conveyor | -6/Data Miner | Free Fabricated ------------ Plasma Cutter | x2 | -7/Factory Alien Tech Used ----------------- None Achievements -------------- Corridor Of Doom Full Golem I Was Wrong! Meet Your Maker Poison In The Code Challenges ------------ None Game ------ Seed HeatChainAxe Manual? 0 Play Time 05:45:41 Cumulative 330.9 hours Start 2024.10.09 @ 07:04:24 End 2024.10.09 @ 20:06:51 Sessions 5 Manual Loads 0 Difficulty Rogue Special Mode None Game No. 255 Rogue 255 Adventurer 0 Explorer 0 Win Type - Total 3 Types 1/0/1/1/0/0/0/0/0 Lore% 75 Gallery% 79 Achievement% 62 Wizard Run 0 Options --------- Layout 2 ASCII 0 Keyboard 1 Movement Vi Keybinds 0 Fullscreen 2 Font 32/SmallcapsGlow Map View 77x44 Zoom Use 0% Tactical HUD 1 Map Filters NONE Filters NONE Steam 1 RUN: c259a267-f7a9-4ad7-81e2-8c3764b7cc21